fUST/lending_fUST_20251216
["ID","MTS","AMOUNT","RATE_DAILY","PERIOD"]
[398580129,1765854642037,-500.0,0.00010958,2]
[398580131,1765854642046,-500.0,0.00010958,2]
[398580133,1765854642056,-500.0,0.00010958,2]
[398580135,1765854642065,-500.0,0.00010958,2]
[398580137,1765854642074,-1452.39,0.00010958,2]
[398580139,1765854642083,-650.82,0.00010958,2]
[398580141,1765854642092,-500.0,0.00010958,2]
[398580143,1765854642101,-500.0,0.00010958,2]
[398580145,1765854642110,-500.0,0.00010958,2]
[398580147,1765854642120,-500.0,0.00010958,2]
[398580149,1765854642131,-544.73,0.00010958,2]
[398580151,1765854642141,-500.0,0.00010958,2]
[398580153,1765854642150,-1273.3,0.00010958,2]
[398580155,1765854642159,-500.0,0.00010958,2]
[398580157,1765854642168,-1002.96,0.00010958,2]
[398580159,1765854642177,-654.7,0.00010958,2]
[398580161,1765854642186,-500.0,0.00010958,2]
[398580163,1765854642195,-500.0,0.00010958,2]
[398580165,1765854642205,-574.94,0.00010958,2]
[398580167,1765854642215,-500.0,0.00010958,2]
[398580169,1765854642224,-500.0,0.00010958,2]
[398580171,1765854642234,-467.89484385,0.00010958,2]
[398580173,1765854642242,-500.0,0.00010958,2]
[398580175,1765854642252,-500.0,0.00010958,2]
[398580177,1765854642261,-500.0,0.00010958,2]
[398580179,1765854642271,-630.75,0.00010958,2]
[398580181,1765854642280,-500.0,0.00010958,2]
[398580183,1765854642289,-875.9,0.00010958,2]
[398580185,1765854642298,-500.0,0.00010958,2]
[398580187,1765854642307,-500.0,0.00010958,2]
[398580189,1765854642317,-500.0,0.00010958,2]
[398580191,1765854642327,-500.0,0.00010958,2]
[398580193,1765854642337,-983.81,0.00010958,2]
[398580195,1765854642346,-900.09,0.00010958,2]
[398580197,1765854642355,-500.0,0.00010958,2]
[398580199,1765854642364,-500.0,0.00010958,2]
[398580201,1765854642373,-500.0,0.00010958,2]
[398580203,1765854642383,-644.73,0.00010958,2]
[398580205,1765854642391,-763.36,0.00010958,2]
[398580207,1765854642400,-500.0,0.00010958,2]
[398580209,1765854642409,-500.0,0.00010958,2]
[398580211,1765854642420,-500.0,0.00010958,2]
[398580213,1765854642431,-1030.57,0.00010958,2]
[398580215,1765854642440,-692.92,0.00010958,2]
[398580217,1765854642450,-500.0,0.00010958,2]
[398580219,1765854642459,-500.0,0.00010958,2]
[398580221,1765854642469,-500.0,0.00010958,2]
[398580223,1765854642478,-500.0,0.00010958,2]
[398580225,1765854642487,-1226.25,0.00010958,2]
[398580227,1765854642497,-523.54416298,0.00010958,2]
[398580229,1765854642508,-904.88,0.00010958,2]
[398580231,1765854642517,-581.53,0.00010958,2]
[398580233,1765854642527,-500.0,0.00010958,2]
[398580235,1765854642536,-1649.45,0.00010958,2]
[398580236,1765854642545,-500.0,0.00010958,2]
[398580238,1765854642554,-500.0,0.00010958,2]
[398580240,1765854642563,-500.0,0.00010958,2]
[398580242,1765854642572,-500.0,0.00010958,2]
[398580244,1765854642581,-500.0,0.00010958,2]
[398580247,1765854642590,-500.0,0.00010958,2]
[398580249,1765854642602,-982.03,0.00010958,2]
[398580251,1765854642611,-891.13,0.00010958,2]
[398580253,1765854642619,-500.0,0.00010958,2]
[398580255,1765854642628,-1162.85,0.00010958,2]
[398580257,1765854642637,-2910.84,0.00010958,2]
[398580259,1765854642646,-500.0,0.00010958,2]
[398580261,1765854642655,-976.61,0.00010958,2]
[398580263,1765854642664,-566.26,0.00010958,2]
[398580265,1765854642673,-500.0,0.00010958,2]
[398580267,1765854642683,-500.0,0.00010958,2]
[398580268,1765854642691,-500.0,0.00010958,2]
[398580270,1765854642700,-500.0,0.00010958,2]
[398580272,1765854642710,-500.0,0.00010958,2]
[398580274,1765854642719,-500.0,0.00010958,2]
[398580276,1765854642728,-500.0,0.00010958,2]
[398580278,1765854642737,-1387.15,0.00010958,2]
[398580280,1765854642746,-500.0,0.00010958,2]
[398580282,1765854642756,-500.0,0.00010958,2]
[398580284,1765854642765,-1812.24,0.00010958,2]
[398580286,1765854642774,-500.0,0.00010958,2]
[398580288,1765854642783,-500.0,0.00010958,2]
[398580290,1765854642791,-500.0,0.00010958,2]
[398580292,1765854642800,-500.0,0.00010958,2]
[398580294,1765854642810,-661.88,0.00010958,2]
[398580296,1765854642819,-500.0,0.00010958,2]
[398580298,1765854642828,-504.21063537,0.00010958,2]
[398580300,1765854642837,-500.0,0.00010958,2]
[398580302,1765854642846,-500.0,0.00010958,2]
[398580304,1765854642855,-500.0,0.00010958,2]
[398580306,1765854642863,-500.0,0.00010958,2]
[398580308,1765854642872,-1524.04,0.00010958,2]
[398580310,1765854642881,-1525.09,0.00010958,2]
[398580312,1765854642890,-500.0,0.00010958,2]
[398580314,1765854642899,-1794.85,0.00010958,2]
[398580316,1765854642908,-286.69,0.00010958,2]
[398580318,1765854642917,-1707.75,0.00010958,2]
[398580320,1765854642926,-1989.24,0.00010958,2]
[398580322,1765854642935,-500.0,0.00010958,2]
[398580324,1765854642944,-1250.66,0.00010958,2]
[398580326,1765854642953,-500.0,0.00010958,2]
[398580328,1765854642962,-608.28,0.00010958,2]
[398580331,1765854642971,-936.77,0.00010958,2]
[398580333,1765854642980,-947.5,0.00010958,2]
[398580334,1765854642989,-500.0,0.00010958,2]
[398580337,1765854642998,-460.83973011,0.00010958,2]
[398580338,1765854643007,-500.0,0.00010958,2]
[398580340,1765854643016,-500.0,0.00010958,2]
[398580342,1765854643025,-500.0,0.00010958,2]
[398580344,1765854643035,-500.0,0.00010958,2]
[398580346,1765854643043,-500.0,0.00010958,2]
[398580348,1765854643053,-500.0,0.00010958,2]
[398580350,1765854643063,-1507.55,0.00010958,2]
[398580352,1765854643073,-1303.96,0.00010958,2]
[398580354,1765854643082,-500.0,0.00010958,2]
[398580356,1765854643091,-500.0,0.00010958,2]
[398580358,1765854643100,-4511.31,0.00010958,2]
[398580360,1765854643110,-500.0,0.00010958,2]
[398580362,1765854643120,-500.0,0.00010958,2]
[398580364,1765854643129,-2745.46,0.00010958,2]
[398580366,1765854643139,-500.0,0.00010958,2]
[398580368,1765854643148,-500.0,0.00010958,2]
[398580370,1765854643158,-500.0,0.00010958,2]
[398580372,1765854643168,-500.0,0.00010958,2]
[398580374,1765854643177,-500.0,0.00010958,2]
[398580376,1765854643186,-500.0,0.00010958,2]
[398580378,1765854643195,-500.0,0.00010958,2]
[398580380,1765854643204,-1876.78,0.00010958,2]
[398580382,1765854643213,-500.0,0.00010958,2]
[398580384,1765854643222,-500.0,0.00010958,2]
[398580386,1765854643231,-1888.04,0.00010958,2]
[398580388,1765854643242,-500.0,0.00010958,2]
[398580390,1765854643251,-500.0,0.00010958,2]
[398580392,1765854643261,-500.0,0.00010958,2]
[398580394,1765854643270,-500.0,0.00010958,2]
[398580396,1765854643279,-676.03,0.00010958,2]
[398580398,1765854643289,-500.0,0.00010958,2]
[398580400,1765854643299,-500.0,0.00010958,2]
[398580402,1765854643309,-500.0,0.00010958,2]
[398580404,1765854643319,-500.0,0.00010958,2]
[398580406,1765854643328,-500.0,0.00010958,2]
[398580408,1765854643338,-500.0,0.00010958,2]
[398580411,1765854643358,-500.0,0.00010958,2]
[398580413,1765854643368,-500.0,0.00010958,2]
[398580415,1765854643378,-1404.44,0.00010958,2]
[398580417,1765854643387,-500.0,0.00010958,2]
[398580419,1765854643397,-500.0,0.00010958,2]
[398580421,1765854643406,-500.0,0.00010958,2]
[398580424,1765854643416,-500.0,0.00010958,2]
[398580426,1765854643430,-500.0,0.00010958,2]
[398580428,1765854643440,-500.0,0.00010958,2]
[398580430,1765854643450,-742.99,0.00010958,2]
[398580432,1765854643460,-500.0,0.00010958,2]
[398580434,1765854643471,-500.0,0.00010958,2]
[398580436,1765854643481,-500.0,0.00010958,2]
[398580438,1765854643491,-535.97463262,0.00010958,2]
[398580439,1765854643501,-500.0,0.00010958,2]
[398580441,1765854643511,-1874.87,0.00010958,2]
[398580444,1765854643521,-510.57,0.00010958,2]
[398580446,1765854643530,-1428.72,0.00010958,2]
[398580448,1765854643540,-500.0,0.00010958,2]
[398580450,1765854643550,-1024.4,0.00010958,2]
[398580452,1765854643560,-500.0,0.00010958,2]
[398580454,1765854643570,-500.0,0.00010958,2]
[398580456,1765854643580,-2391.14,0.00010958,2]
[398580458,1765854643589,-500.0,0.00010958,2]
[398580460,1765854643599,-1471.14,0.00010958,2]
[398580462,1765854643609,-500.0,0.00010958,2]
[398580463,1765854643618,-500.0,0.00010958,2]
[398580466,1765854643627,-2313.74,0.00010958,2]
[398580468,1765854643641,-500.0,0.00010958,2]
[398580470,1765854643650,-500.0,0.00010958,2]
[398580472,1765854643660,-500.0,0.00010958,2]
[398580474,1765854643669,-500.0,0.00010958,2]
[398580476,1765854643678,-500.0,0.00010958,2]
[398580478,1765854643687,-500.0,0.00010958,2]
[398580480,1765854643697,-500.0,0.00010958,2]
[398580482,1765854643706,-500.0,0.00010958,2]
[398580484,1765854643716,-1654.7,0.00010958,2]
[398580486,1765854643726,-500.0,0.00010958,2]
[398580488,1765854643735,-500.0,0.00010958,2]
[398580490,1765854643744,-500.0,0.00010958,2]
[398580492,1765854643753,-500.0,0.00010958,2]
[398580494,1765854643763,-500.0,0.00010958,2]
[398580496,1765854643772,-2010.12,0.00010958,2]
[398580498,1765854643781,-1314.66,0.00010958,2]
[398580500,1765854643790,-600.397039,0.00010958,2]
[398580502,1765854643800,-500.0,0.00010958,2]
[398580504,1765854643809,-500.0,0.00010958,2]
[398580506,1765854643819,-2553.61,0.00010958,2]
[398580508,1765854643828,-500.0,0.00010958,2]
[398580510,1765854643838,-2448.98,0.00010958,2]
[398580512,1765854643847,-1410.2,0.00010958,2]
[398580514,1765854643856,-2992.75,0.00010958,2]
[398580516,1765854643864,-500.0,0.00010958,2]
[398580518,1765854643873,-647.5,0.00010958,2]
[398580520,1765854643882,-500.0,0.00010958,2]
[398580522,1765854643891,-2479.61,0.00010958,2]
[398580524,1765854643900,-500.0,0.00010958,2]
[398580526,1765854643909,-500.0,0.00010958,2]
[398580528,1765854643919,-1416.1,0.00010958,2]
[398580530,1765854643928,-2314.24,0.00010958,2]
[398580532,1765854643937,-500.0,0.00010958,2]
[398580534,1765854643946,-500.0,0.00010958,2]
[398580535,1765854643955,-1561.89,0.00010958,2]
[398580538,1765854643965,-7437.49,0.00010958,2]
[398580540,1765854643974,-506.66307948,0.00010958,2]
[398580541,1765854643983,-500.0,0.00010958,2]
[398580544,1765854643993,-9687.18,0.00010958,2]
[398580546,1765854644003,-2033.88,0.00010958,2]
[398580548,1765854644012,-500.0,0.00010958,2]
[398580550,1765854644021,-500.0,0.00010958,2]
[398580552,1765854644030,-500.0,0.00010958,2]
[398580554,1765854644039,-8945.74,0.00010958,2]
[398580556,1765854644048,-500.0,0.00010958,2]
[398580558,1765854644058,-500.0,0.00010958,2]
[398580560,1765854644068,-2310.39,0.00010958,2]
[398580562,1765854644077,-999.39,0.00010958,2]
[398580563,1765854644087,-500.0,0.00010958,2]
[398580566,1765854644097,-500.0,0.00010958,2]
[398580568,1765854644107,-663.99,0.00010958,2]
[398580570,1765854644117,-500.0,0.00010958,2]
[398580572,1765854644127,-500.0,0.00010958,2]
[398580573,1765854644137,-979.02,0.00010958,2]
[398580575,1765854644147,-631.81,0.00010958,2]
[398580577,1765854644157,-2671.54,0.00010958,2]
[398580579,1765854644167,-500.0,0.00010958,2]
[398580581,1765854644176,-500.0,0.00010958,2]
[398580583,1765854644185,-500.0,0.00010958,2]
[398580585,1765854644194,-500.0,0.00010958,2]
[398580587,1765854644204,-4487.79,0.00010958,2]
[398580589,1765854644214,-500.50745493,0.00010958,2]
[398580591,1765854644223,-654.31,0.00010958,2]
[398580593,1765854644233,-2560.02,0.00010958,2]
[398580595,1765854644242,-500.0,0.00010958,2]
[398580597,1765854644251,-500.0,0.00010958,2]
[398580599,1765854644260,-305.97625437,0.00010958,2]
[398580601,1765854644270,-4250.16,0.00010958,2]
[398580603,1765854644279,-500.89,0.00010958,2]
[398580605,1765854644288,-5272.36,0.00010958,2]
[398580607,1765854644298,-500.0,0.00010958,2]
[398580609,1765854644307,-1055.36,0.00010958,2]
[398580611,1765854644316,-559.82,0.00010958,2]
[398580613,1765854644325,-500.0,0.00010958,2]
[398580615,1765854644335,-2277.28,0.00010958,2]
[398580617,1765854644344,-842.89,0.00010958,2]
[398580619,1765854644353,-500.0,0.00010958,2]
[398580621,1765854644362,-500.0,0.00010958,2]
[398580623,1765854644372,-544.7,0.00010958,2]
[398580625,1765854644381,-500.0,0.00010958,2]
[398580627,1765854644390,-500.0,0.00010958,2]
[398580629,1765854644400,-500.0,0.00010958,2]
[398580631,1765854644409,-500.0,0.00010958,2]
[398580653,1765854644605,-2607.31,0.00010958,2]
[398580654,1765854644633,-839.03,0.00010958,2]
[398580655,1765854644642,-549.08,0.00010958,2]
[398580656,1765854644651,-457.04106456,0.00010958,2]
[398580657,1765854644660,-1807.51,0.00010958,2]
[398580658,1765854644668,-500.0,0.00010958,2]
[398580659,1765854644677,-500.0,0.00010958,2]
[398580660,1765854644685,-500.0,0.00010958,2]
[398580661,1765854644694,-2509.02,0.00010958,2]
[398580662,1765854644703,-500.0,0.00010958,2]
[398580663,1765854644711,-875.49,0.00010958,2]
[398580664,1765854644720,-500.0,0.00010958,2]
[398580665,1765854644729,-2432.88,0.00010958,2]
[398580666,1765854644738,-1461.92,0.00010958,2]
[398580667,1765854644747,-3542.16,0.00010958,2]
[398580668,1765854644755,-868.75,0.00010958,2]
[398580669,1765854644764,-500.0,0.00010958,2]
[398580670,1765854644773,-2470.59,0.00010958,2]
[398580671,1765854644782,-500.0,0.00010958,2]
[398580672,1765854644791,-500.0,0.00010958,2]
[398580673,1765854644803,-500.0,0.00010958,2]
[398580674,1765854644812,-500.0,0.00010958,2]
[398580675,1765854644821,-4270.13,0.00010958,2]
[398580676,1765854644830,-501.11079996,0.00010958,2]
[398580677,1765854644838,-769.44,0.00010958,2]
[398580678,1765854644847,-500.0,0.00010958,2]
[398580679,1765854644856,-500.0,0.00010958,2]
[398580680,1765854644865,-500.0,0.00010958,2]
[398580681,1765854644874,-1888.91,0.00010958,2]
[398580682,1765854644883,-936.05,0.00010958,2]
[398580683,1765854644891,-514.20603838,0.00010958,2]
[398580684,1765854644900,-746.01,0.00010958,2]
[398580685,1765854644909,-500.0,0.00010958,2]
[398580686,1765854644918,-500.0,0.00010958,2]
[398580687,1765854644926,-500.0,0.00010958,2]
[398580688,1765854644936,-500.0,0.00010958,2]
[398580689,1765854644945,-9948.33456311,0.00010958,2]
[398581755,1765855626294,-893.4641072,0.00010109,3]
[398581756,1765855626315,-888.15105079,0.00010109,3]
[398581757,1765855658247,366.3087115,0.00010039,2]
[398581758,1765855658270,4633.6912885,0.00010039,2]
[398581759,1765855680923,5000.0,0.00010039,2]
[398581760,1765855704165,366.3187115,0.00010039,2]
[398581761,1765855704188,4633.6812885,0.00010039,2]
[398581762,1765855719132,5366.3287115,0.0001,2]
[398581763,1765855719160,9669.42815071,0.0001,2]
[398581764,1765855719303,330.58184929,0.0001,2]
[398581765,1765855719326,2582.61772523,0.0001,2]
[398581766,1765855723302,1762.65608974,8.9e-05,2]
[398581767,1765855727440,5000.0,0.00010039,2]
[398581768,1765855743173,150.0,6.982e-05,2]
[398581769,1765855743614,150.0,7.314e-05,2]
[398581770,1765855744503,150.0,7.647e-05,2]
[398581771,1765855752617,204.73618503,0.00010039,2]
[398581772,1765855752649,4795.26381497,0.00010039,2]
[398581773,1765855774999,5000.0,0.00010039,2]
[398581774,1765855798036,204.74618503,0.00010039,2]
[398581775,1765855798059,4795.25381497,0.00010039,2]
[398581776,1765855821432,5000.0,0.00010039,2]
[398581784,1765855831949,-255.49749186,0.00010109,3]
[398581785,1765855831960,-929.26250814,0.00010109,3]
[398581786,1765855831970,-975.72973871,0.00010109,3]
[398581814,1765855837912,-525.2156393,0.00010109,3]
[398581815,1765855837922,-111.63030482,0.00010109,3]
[398581816,1765855837933,-971.53968209,0.00010109,3]
[398581817,1765855837942,-610.76734871,0.00010124,2]
[398581818,1765855837969,-589.23265129,0.00010124,2]
[398581819,1765855837980,-562.0,0.00010125,2]
[398581820,1765855837989,-393.16993042,0.00010125,2]
[398581821,1765855837999,-2773.56790519,0.00010545,2]
[398581822,1765855838008,-229.56894363,0.00010545,2]
[398581823,1765855838019,-300.0,0.00010548,2]
[398581824,1765855838028,-300.0,0.00010548,2]
[398581825,1765855838039,-300.0,0.00010548,2]
[398581826,1765855838050,-273.69094008,0.00010549,2]
[398581827,1765855838059,-500.0,0.00010549,2]
[398581828,1765855838069,-500.0,0.00010549,2]
[398581829,1765855838079,-580.84831568,0.00010549,2]
[398581830,1765855838089,-500.0,0.00010549,2]
[398581831,1765855838098,-500.0,0.00010549,2]
[398581832,1765855838108,-500.0,0.00010549,2]
[398581833,1765855838118,-500.0,0.00010549,2]
[398581834,1765855838128,-319.38397282,0.00010549,2]
[398581835,1765855838138,-500.0,0.00010549,2]
[398581836,1765855838148,-557.03889909,0.00010549,2]
[398581837,1765855838157,-500.0,0.00010549,2]
[398581838,1765855838167,-515.88642388,0.00010549,2]
[398581839,1765855838177,-500.0,0.00010549,2]
[398581840,1765855838187,-39568.9758863,0.0001055,2]
[398581841,1765855838199,-5582.1560482,0.0001055,2]
[398581842,1765855838211,-608.28484987,0.0001055,2]
[398581843,1765855838221,-500.0,0.00010684,2]
[398581844,1765855838231,-150.0,0.00010684,2]
[398581845,1765855838240,-150.0,0.00010684,2]
[398581846,1765855838250,-150.0,0.00010684,2]
[398581847,1765855838259,-500.0,0.00010821,2]
[398581848,1765855838268,-150.0,0.00010821,2]
[398581849,1765855838278,-150.0,0.00010821,2]
[398581850,1765855838288,-410.998,0.00010851,2]
[398581851,1765855838298,-10000.0,0.000109,2]
[398581852,1765855838308,-2932.6129273,0.0001095,2]
[398581853,1765855838318,-156.587,0.00010951,2]
[398581854,1765855838328,-500.0,0.00010951,2]
[398581855,1765855838338,-500.0,0.00010951,2]
[398581856,1765855838352,-500.0,0.00010951,2]
[398581857,1765855838362,-500.0,0.00010951,2]
[398581858,1765855838372,-614.12031767,0.00010951,2]
[398581859,1765855838382,-574.12855637,0.00010951,2]
[398581860,1765855838392,-710.92447316,0.00010951,2]
[398581861,1765855838402,-201.55213806,0.00010958,2]
[398581862,1765855838412,-150.0,0.00010958,2]
[398581863,1765855838422,-466.30256557,0.00010958,2]
[398581864,1765855838432,-500.0,0.00010958,2]
[398581865,1765855838443,-500.0,0.00010958,2]
[398581866,1765855838453,-500.0,0.00010958,2]
[398581867,1765855838463,-856.81,0.00010958,2]
[398581868,1765855838473,-500.0,0.00010958,2]
[398581869,1765855838486,-500.0,0.00010958,2]
[398581870,1765855838498,-500.0,0.00010958,2]
[398581871,1765855838508,-500.0,0.00010958,2]
[398581872,1765855838518,-500.0,0.00010958,2]
[398581873,1765855838528,-514.22,0.00010958,2]
[398581874,1765855838538,-150.0,0.00010958,2]
[398581875,1765855838548,-500.0,0.00010958,2]
[398581876,1765855838558,-500.0,0.00010958,2]
[398581877,1765855838567,-500.0,0.00010958,2]
[398581878,1765855838577,-506.31147112,0.00010958,2]
[398581879,1765855838587,-661.14952478,0.00010958,2]
[398581880,1765855838597,-1190.06914461,0.00010958,2]
[398581881,1765855838607,-500.0,0.00010958,2]
[398581882,1765855838617,-500.0,0.00010958,2]
[398581883,1765855838626,-500.0,0.00010958,2]
[398581884,1765855838637,-500.0,0.00010958,2]
[398581885,1765855838646,-500.0,0.00010958,2]
[398581886,1765855838656,-609.38,0.00010958,2]
[398581887,1765855838666,-1799.76,0.00010958,2]
[398581888,1765855838675,-500.0,0.00010958,2]
[398581889,1765855838689,-500.0,0.00010958,2]
[398581890,1765855838698,-807.59,0.00010958,2]
[398581891,1765855838707,-500.0,0.00010958,2]
[398581892,1765855838717,-500.0,0.00010958,2]
[398581893,1765855838727,-500.0,0.00010958,2]
[398581894,1765855838736,-887.08,0.00010958,2]
[398581895,1765855838746,-500.0,0.00010958,2]
[398581896,1765855838756,-500.0,0.00010958,2]
[398581897,1765855838771,-500.0,0.00010958,2]
[398581898,1765855838781,-874.49,0.00010958,2]
[398581899,1765855838790,-500.0,0.00010958,2]
[398581900,1765855838800,-500.0,0.00010958,2]
[398581901,1765855839142,-548.45,0.00010958,2]
[398581902,1765855839152,-1476.91,0.00010958,2]
[398581903,1765855839161,-500.0,0.00010958,2]
[398581904,1765855839170,-862.59,0.00010958,2]
[398581905,1765855839179,-500.0,0.00010958,2]
[398581906,1765855839188,-1336.28,0.00010958,2]
[398581907,1765855839197,-500.0,0.00010958,2]
[398581908,1765855839206,-500.0,0.00010958,2]
[398581909,1765855839215,-623.14,0.00010958,2]
[398581910,1765855839224,-500.0,0.00010958,2]
[398581911,1765855839233,-1480.98,0.00010958,2]
[398581912,1765855839242,-500.0,0.00010958,2]
[398581913,1765855839251,-500.0,0.00010958,2]
[398581914,1765855839261,-500.0,0.00010958,2]
[398581915,1765855839270,-1278.69,0.00010958,2]
[398581916,1765855839279,-500.0,0.00010958,2]
[398581917,1765855839288,-534.85989858,0.00010958,2]
[398581918,1765855839299,-500.0,0.00010958,2]
[398581919,1765855839308,-500.0,0.00010958,2]
[398581920,1765855839318,-500.0,0.00010958,2]
[398581921,1765855839327,-500.0,0.00010958,2]
[398581922,1765855839337,-6268.9449388,0.00010958,2]
[398581923,1765855839345,-935.92,0.00010958,2]
[398581924,1765855839354,-500.0,0.00010958,2]
[398581925,1765855839364,-500.0,0.00010958,2]
[398581926,1765855839374,-500.0,0.00010958,2]
[398581927,1765855839384,-559.56,0.00010958,2]
[398581928,1765855839393,-500.0,0.00010958,2]
[398581929,1765855839402,-1139.54,0.00010958,2]
[398581930,1765855839412,-500.0,0.00010958,2]
[398581931,1765855839421,-500.0,0.00010958,2]
[398581932,1765855839430,-500.0,0.00010958,2]
[398581933,1765855839439,-486.26087895,0.00010958,2]
[398581934,1765855839449,-500.0,0.00010958,2]
[398581935,1765855839458,-500.0,0.00010958,2]
[398581936,1765855839467,-738.9,0.00010958,2]
[398581937,1765855839476,-1515.31,0.00010958,2]
[398581938,1765855839485,-979.19,0.00010958,2]
[398581939,1765855839493,-500.0,0.00010958,2]
[398581940,1765855839503,-500.0,0.00010958,2]
[398581941,1765855839512,-500.0,0.00010958,2]
[398581942,1765855839521,-500.0,0.00010958,2]
[398581943,1765855839531,-500.0,0.00010958,2]
[398581944,1765855839540,-500.0,0.00010958,2]
[398581945,1765855839550,-500.0,0.00010958,2]
[398581946,1765855839559,-500.0,0.00010958,2]
[398581947,1765855839568,-855.12,0.00010958,2]
[398581948,1765855839578,-500.0,0.00010958,2]
[398581949,1765855839587,-500.0,0.00010958,2]
[398581950,1765855839604,-500.0,0.00010958,2]
[398581951,1765855839616,-500.0,0.00010958,2]
[398581952,1765855839626,-603.37076361,0.00010958,2]
[398581954,1765855839646,-437.06923639,0.00010958,2]
[398581955,1765855839655,-500.0,0.00010958,2]
[398581956,1765855839665,-500.0,0.00010958,2]
[398581957,1765855839675,-986.39,0.00010958,2]
[398581958,1765855839685,-646.01,0.00010958,2]
[398581959,1765855839695,-500.0,0.00010958,2]
[398581960,1765855839704,-500.0,0.00010958,2]
[398581962,1765855839714,-1244.02,0.00010958,2]
[398581964,1765855839723,-7568.53078761,0.00010958,2]
[398581966,1765855839735,-1515.33670299,0.00010958,2]
[398581968,1765855839746,-500.0,0.00010958,2]
[398581970,1765855839755,-500.0,0.00010958,2]
[398581971,1765855839767,-500.0,0.00010958,2]
[398581972,1765855839776,-236.25341068,0.00010958,2]
[398581973,1765855839786,-500.0,0.00010958,2]
[398581974,1765855839796,-1482.63,0.00010958,2]
[398581975,1765855839806,-500.0,0.00010958,2]
[398581976,1765855839815,-500.0,0.00010958,2]
[398581978,1765855839825,-500.0,0.00010958,2]
[398581980,1765855839834,-500.0,0.00010958,2]
[398581981,1765855839846,-1254.35,0.00010958,2]
[398581982,1765855839854,-499.99579287,0.00010958,2]
[398581983,1765855839863,-797.36,0.00010958,2]
[398581984,1765855839873,-500.0,0.00010958,2]
[398581985,1765855839883,-500.0,0.00010958,2]
[398581986,1765855839893,-500.0,0.00010958,2]
[398581987,1765855839902,-219.78972106,0.00010958,2]
[398581988,1765855839914,-280.21027894,0.00010958,2]
[398581989,1765855839923,-46.72906218,0.00010958,2]
[398581991,1765855839934,-453.27093782,0.00010958,2]
[398581992,1765855839943,-203.94640184,0.00010958,2]
[398581993,1765855839955,-320.80769379,0.00010958,2]
[398581994,1765855839965,-120.48590437,0.00010958,2]
[398581995,1765855839974,-500.0,0.00010958,2]
[398581996,1765855839984,-500.0,0.00010958,2]
[398581997,1765855839994,-500.0,0.00010958,2]
[398581998,1765855840003,-427.49512827,0.00010958,2]
[398581999,1765855840015,-72.50487173,0.00010958,2]
[398582000,1765855840024,-206.60260909,0.00010958,2]
[398582001,1765855840036,-293.39739091,0.00010958,2]
[398582002,1765855840046,-8.60260909,0.00010958,2]
[398582003,1765855840058,-534.26739091,0.00010958,2]
[398582004,1765855840067,-500.0,0.00010958,2]
[398582005,1765855840077,-500.0,0.00010958,2]
[398582007,1765855840086,-500.0,0.00010958,2]
[398582009,1765855840095,-500.0,0.00010958,2]
[398582011,1765855840105,-500.0,0.00010958,2]